fUSD/lending_fUSD_20240227
["ID","MTS","AMOUNT","RATE_DAILY","PERIOD"]
[315442927,1709039444763,-812.11,0.00022739,2]
[315442928,1709039444772,-812.11,0.00022739,2]
[315442929,1709039444782,-812.11,0.00022739,2]
[315442930,1709039444791,-1889.26,0.00022739,2]
[315442931,1709039444801,-812.11,0.00022739,2]
[315442932,1709039444811,-1889.26,0.00022739,2]
[315442933,1709039444821,-812.11,0.00022739,2]
[315442934,1709039444830,-1889.26,0.00022739,2]
[315442935,1709039444839,-812.11,0.00022739,2]
[315442936,1709039444849,-1889.26,0.00022739,2]
[315442937,1709039444858,-812.11,0.00022739,2]
[315442938,1709039444869,-812.11,0.00022739,2]
[315442939,1709039445121,-532.48006646,0.00022739,2]
[315442940,1709039445143,-2371.42,0.00022739,2]
[315442941,1709039445153,-500.0,0.00022739,2]
[315442942,1709039445165,-814.15,0.00022739,2]
[315442943,1709039445174,-565.4,0.00022739,2]
[315442944,1709039445184,-814.15,0.00022739,2]
[315442945,1709039445193,-500.0,0.00022739,2]
[315442946,1709039445202,-565.4,0.00022739,2]
[315442947,1709039445212,-814.15,0.00022739,2]
[315442948,1709039445221,-565.4,0.00022739,2]
[315442949,1709039445229,-565.4,0.00022739,2]
[315442950,1709039445238,-7070.88,0.00022739,2]
[315442951,1709039445248,-565.4,0.00022739,2]
[315442952,1709039445256,-7070.88,0.00022739,2]
[315442953,1709039445266,-565.4,0.00022739,2]
[315442954,1709039445276,-500.0,0.00022739,2]
[315442955,1709039445286,-7070.88,0.00022739,2]
[315442956,1709039445296,-565.4,0.00022739,2]
[315442957,1709039445305,-1110.43,0.00022739,2]
[315442958,1709039445315,-7070.88,0.00022739,2]
[315442959,1709039445324,-565.4,0.00022739,2]
[315442960,1709039445334,-1110.43,0.00022739,2]
[315442961,1709039445344,-7070.88,0.00022739,2]
[315442962,1709039445354,-1110.43,0.00022739,2]
[315442963,1709039445365,-7070.88,0.00022739,2]
[315442964,1709039445375,-1110.43,0.00022739,2]
[315442965,1709039445385,-500.0,0.00022739,2]
[315442966,1709039445395,-7070.88,0.00022739,2]
[315442967,1709039445405,-500.0,0.00022739,2]
[315442968,1709039445415,-7070.88,0.00022739,2]
[315442969,1709039445425,-500.0,0.00022739,2]
[315442970,1709039445434,-500.0,0.00022739,2]
[315442971,1709039445445,-500.0,0.00022739,2]
[315442972,1709039445456,-500.0,0.00022739,2]
[315442973,1709039445464,-500.0,0.00022739,2]
[315442974,1709039445474,-500.0,0.00022739,2]
[315442975,1709039445483,-500.0,0.00022739,2]
[315442976,1709039445492,-500.0,0.00022739,2]
[315442977,1709039445501,-500.0,0.00022739,2]
[315442978,1709039445512,-500.0,0.00022739,2]
[315442979,1709039445521,-500.0,0.00022739,2]
[315442980,1709039445530,-500.0,0.00022739,2]
[315442981,1709039445539,-500.0,0.00022739,2]
[315442982,1709039445547,-500.0,0.00022739,2]
[315442983,1709039445556,-768.49,0.00022739,2]
[315442984,1709039445565,-768.49,0.00022739,2]
[315442985,1709039445574,-1229.1,0.00022739,2]
[315442986,1709039445583,-768.49,0.00022739,2]
[315442987,1709039445592,-1229.1,0.00022739,2]
[315442988,1709039445602,-768.49,0.00022739,2]
[315442989,1709039445611,-1229.1,0.00022739,2]
[315442990,1709039445621,-768.49,0.00022739,2]
[315442991,1709039445630,-1229.1,0.00022739,2]
[315442992,1709039445640,-768.49,0.00022739,2]
[315442993,1709039445649,-1229.1,0.00022739,2]
[315442994,1709039445658,-768.49,0.00022739,2]
[315442995,1709039445668,-1229.1,0.00022739,2]
[315442996,1709039445677,-500.0,0.00022739,2]
[315442997,1709039445687,-768.49,0.00022739,2]
[315442998,1709039445698,-1229.1,0.00022739,2]
[315442999,1709039445708,-500.0,0.00022739,2]
[315443000,1709039445719,-744.62,0.00022739,2]
[315443001,1709039445729,-744.62,0.00022739,2]
[315443002,1709039445741,-744.62,0.00022739,2]
[315443003,1709039445752,-1229.1,0.00022739,2]
[315443004,1709039445761,-500.0,0.00022739,2]
[315443005,1709039445772,-500.0,0.00022739,2]
[315443006,1709039445782,-500.0,0.00022739,2]
[315443007,1709039445793,-500.0,0.00022739,2]
[315443008,1709039445804,-500.0,0.00022739,2]
[315443009,1709039445814,-594.76,0.00022739,2]
[315443010,1709039445824,-500.0,0.00022739,2]
[315443011,1709039445834,-500.0,0.00022739,2]
[315443012,1709039445847,-272.45174551,0.00022739,2]
[315443014,1709039445857,-594.76,0.00022739,2]
[315443016,1709039445868,-500.0,0.00022739,2]
[315443018,1709039445878,-594.76,0.00022739,2]
[315443019,1709039445913,-500.0,0.00022739,2]
[315443021,1709039445923,-500.0,0.00022739,2]
[315443024,1709039445932,-500.0,0.00022739,2]
[315443026,1709039445941,-500.0,0.00022739,2]
[315443028,1709039445950,-500.0,0.00022739,2]
[315443030,1709039445960,-500.0,0.00022739,2]
[315443032,1709039445969,-519.31,0.00022739,2]
[315443034,1709039445978,-519.31,0.00022739,2]
[315443037,1709039445987,-519.31,0.00022739,2]
[315443040,1709039445996,-3683.96,0.00022739,2]
[315443042,1709039446005,-519.31,0.00022739,2]
[315443043,1709039446015,-654.26,0.00022739,2]
[315443044,1709039446024,-654.26,0.00022739,2]
[315443045,1709039446034,-3683.96,0.00022739,2]
[315443046,1709039446043,-654.26,0.00022739,2]
[315443047,1709039446052,-3683.96,0.00022739,2]
[315443048,1709039446061,-500.0,0.00022739,2]
[315443049,1709039446070,-654.26,0.00022739,2]
[315443050,1709039446079,-3683.96,0.00022739,2]
[315443051,1709039446088,-500.0,0.00022739,2]
[315443052,1709039446096,-500.0,0.00022739,2]
[315443053,1709039446105,-500.0,0.00022739,2]
[315443054,1709039446114,-500.0,0.00022739,2]
[315443055,1709039446123,-500.0,0.00022739,2]
[315443056,1709039446132,-500.0,0.00022739,2]
[315443057,1709039446140,-346.64,0.00022739,2]
[315443058,1709039446149,-500.0,0.00022739,2]
[315443059,1709039446159,-500.0,0.00022739,2]
[315443060,1709039446169,-500.0,0.00022739,2]
[315443061,1709039446179,-500.0,0.00022739,2]
[315443062,1709039446188,-500.0,0.00022739,2]
[315443063,1709039446198,-519.31,0.00022739,2]
[315443064,1709039446207,-500.0,0.00022739,2]
[315443065,1709039446215,-500.0,0.00022739,2]
[315443066,1709039446226,-519.31,0.00022739,2]
[315443067,1709039446236,-519.31,0.00022739,2]
[315443068,1709039446245,-519.31,0.00022739,2]
[315443069,1709039446255,-631.65,0.00022739,2]
[315443070,1709039446264,-631.65,0.00022739,2]
[315443071,1709039446273,-631.65,0.00022739,2]
[315443072,1709039446282,-500.0,0.00022739,2]
[315443073,1709039446291,-1344.36,0.00022739,2]
[315443074,1709039446299,-1344.36,0.00022739,2]
[315443075,1709039446308,-1344.36,0.00022739,2]
[315443076,1709039446317,-631.65,0.00022739,2]
[315443077,1709039446326,-631.65,0.00022739,2]
[315443078,1709039446337,-631.65,0.00022739,2]
[315443079,1709039446347,-631.65,0.00022739,2]
[315443080,1709039446358,-575.17,0.00022739,2]
[315443081,1709039446368,-631.65,0.00022739,2]
[315443082,1709039446378,-500.0,0.00022739,2]
[315443083,1709039446387,-636.38,0.00022739,2]
[315443084,1709039446396,-636.38,0.00022739,2]
[315443085,1709039446406,-636.38,0.00022739,2]
[315443086,1709039446415,-636.38,0.00022739,2]
[315443087,1709039446423,-871.25,0.00022739,2]
[315443088,1709039446433,-500.0,0.00022739,2]
[315443089,1709039446442,-843.31,0.00022739,2]
[315443090,1709039446451,-843.31,0.00022739,2]
[315443092,1709039446460,-843.31,0.00022739,2]
[315443094,1709039446470,-500.0,0.00022739,2]
[315443096,1709039446479,-500.0,0.00022739,2]
[315443097,1709039446488,-500.0,0.00022739,2]
[315443099,1709039446497,-500.0,0.00022739,2]
[315443101,1709039446506,-500.0,0.00022739,2]
[315443103,1709039446516,-500.0,0.00022739,2]
[315443105,1709039446526,-500.0,0.00022739,2]
[315443107,1709039446536,-500.0,0.00022739,2]
[315443109,1709039446546,-710.45,0.00022739,2]
[315443111,1709039446556,-710.45,0.00022739,2]
[315443113,1709039446566,-710.45,0.00022739,2]
[315443115,1709039446576,-500.0,0.00022739,2]
[315443117,1709039446587,-641.5,0.00022739,2]
[315443119,1709039446596,-500.0,0.00022739,2]
[315443120,1709039446606,-500.0,0.00022739,2]
[315443123,1709039446617,-287.42,0.00022739,2]
[315443125,1709039446627,-500.0,0.00022739,2]
[315443127,1709039446639,-155.2,0.0002274,2]
[315443129,1709039446649,-155.26,0.0002274,2]
[315443131,1709039446660,-552.34,0.00022743,2]
[315443133,1709039446670,-163.53,0.00022795,2]
[315443134,1709039446680,-843.1923,0.000228,2]
[315443137,1709039446690,-172.07059808,0.000228,2]
[315443139,1709039446700,-225.7406,0.000228,2]
[315443141,1709039446711,-528.18,0.00022827,2]
[315443143,1709039446721,-528.18,0.00022827,2]
[315443144,1709039446730,-783.56,0.00022827,2]
[315443146,1709039446739,-528.18,0.00022827,2]
[315443148,1709039446750,-783.56,0.00022827,2]
[315443151,1709039446763,-783.56,0.00022827,2]
[315443153,1709039446772,-2038.18,0.00022827,2]
[315443154,1709039446782,-2038.18,0.00022827,2]
[315443155,1709039446791,-2038.18,0.00022827,2]
[315443156,1709039446802,-3152.6,0.00022827,2]
[315443157,1709039446812,-3152.6,0.00022827,2]
[315443158,1709039446822,-3152.6,0.00022827,2]
[315443159,1709039446833,-534.66,0.00022827,2]
[315443160,1709039446842,-534.66,0.00022827,2]
[315443161,1709039446851,-534.66,0.00022827,2]
[315443162,1709039446861,-500.0,0.00022827,2]
[315443163,1709039446872,-500.0,0.00022827,2]
[315443164,1709039446881,-500.0,0.00022827,2]
[315443165,1709039446891,-2518.4,0.00022827,2]
[315443166,1709039446900,-2518.4,0.00022827,2]
[315443167,1709039446912,-2518.4,0.00022827,2]
[315443168,1709039446922,-1226.23,0.00022827,2]
[315443169,1709039446931,-1226.23,0.00022827,2]
[315443170,1709039446942,-1226.23,0.00022827,2]
[315443171,1709039446953,-8106.77,0.00022827,2]
[315443172,1709039446962,-8106.77,0.00022827,2]
[315443173,1709039446971,-8106.77,0.00022827,2]
[315443174,1709039446980,-2420.75,0.00022827,2]
[315443175,1709039446990,-2420.75,0.00022827,2]
[315443176,1709039447000,-2420.75,0.00022827,2]
[315443177,1709039447010,-500.0,0.00022827,2]
[315443178,1709039447020,-500.0,0.00022827,2]
[315443179,1709039447029,-500.0,0.00022827,2]
[315443180,1709039447039,-22097.09,0.00022827,2]
[315443181,1709039447050,-22097.09,0.00022827,2]
[315443182,1709039447060,-22097.09,0.00022827,2]
[315443183,1709039447072,-1056.01,0.00022827,2]
[315443184,1709039447083,-1056.01,0.00022827,2]
[315443185,1709039447093,-1056.01,0.00022827,2]
[315443186,1709039447103,-500.0,0.00022827,2]
[315443187,1709039447113,-500.0,0.00022827,2]
[315443188,1709039447123,-500.0,0.00022827,2]
[315443189,1709039447133,-2030.78,0.00022827,2]
[315443190,1709039447142,-2030.78,0.00022827,2]
[315443191,1709039447152,-2030.78,0.00022827,2]
[315443192,1709039447161,-643.67,0.00022827,2]
[315443193,1709039447171,-1575.11,0.00022827,2]
[315443194,1709039447180,-1575.11,0.00022827,2]
[315443195,1709039447190,-1575.11,0.00022827,2]
[315443196,1709039447201,-572.95,0.00022827,2]
[315443197,1709039447211,-500.0,0.00022827,2]
[315443198,1709039447221,-500.0,0.00022827,2]
[315443199,1709039447231,-500.0,0.00022827,2]
[315443200,1709039447241,-1362.92,0.00022827,2]
[315443201,1709039447251,-1362.92,0.00022827,2]
[315443202,1709039447262,-1362.92,0.00022827,2]
[315443203,1709039447273,-3659.92,0.00022827,2]
[315443204,1709039447283,-500.0,0.00022827,2]
[315443205,1709039447294,-500.0,0.00022827,2]
[315443206,1709039447304,-500.0,0.00022827,2]
[315443207,1709039447314,-788.36,0.00022827,2]
[315443208,1709039447324,-500.0,0.00022827,2]
[315443209,1709039447333,-500.0,0.00022827,2]
[315443210,1709039447343,-500.0,0.00022827,2]
[315443211,1709039447352,-554.21,0.00022827,2]
[315443212,1709039447361,-5484.79,0.00022827,2]
[315443213,1709039447372,-5484.79,0.00022827,2]
[315443214,1709039447382,-5484.79,0.00022827,2]
[315443215,1709039447392,-1099.35,0.00022827,2]
[315443216,1709039447401,-500.0,0.00022827,2]
[315443217,1709039447411,-500.0,0.00022827,2]
[315443218,1709039447420,-500.0,0.00022827,2]
[315443219,1709039447430,-504.49,0.00022827,2]
[315443220,1709039447439,-744.02,0.00022827,2]
[315443221,1709039447449,-577.96,0.00022827,2]
[315443222,1709039447459,-744.02,0.00022827,2]
[315443223,1709039447468,-744.02,0.00022827,2]
[315443224,1709039447477,-500.0,0.00022827,2]
[315443225,1709039447488,-1160.79,0.00022827,2]
[315443226,1709039447498,-1160.79,0.00022827,2]
[315443227,1709039447507,-1160.79,0.00022827,2]
[315443228,1709039447516,-1645.64,0.00022827,2]
[315443229,1709039447526,-500.0,0.00022827,2]
[315443230,1709039447536,-1889.26,0.00022827,2]
[315443231,1709039447546,-1889.26,0.00022827,2]
[315443232,1709039447556,-1889.26,0.00022827,2]
[315443233,1709039447566,-812.11,0.00022827,2]
[315443234,1709039447576,-1110.43,0.00022827,2]
[315443235,1709039447585,-1110.43,0.00022827,2]
[315443236,1709039447594,-7070.88,0.00022827,2]
[315443237,1709039447603,-1110.43,0.00022827,2]
[315443238,1709039447612,-565.4,0.00022827,2]
[315443239,1709039447623,-500.0,0.00022827,2]
[315443240,1709039447633,-500.0,0.00022827,2]
[315443241,1709039447642,-500.0,0.00022827,2]
[315443242,1709039447651,-500.0,0.00022827,2]
[315443243,1709039447660,-768.49,0.00022827,2]
[315443244,1709039447669,-1229.1,0.00022827,2]
[315443245,1709039447678,-500.0,0.00022827,2]
[315443246,1709039447688,-654.26,0.00022827,2]
[315443247,1709039447697,-3683.96,0.00022827,2]
[315443248,1709039447707,-3683.96,0.00022827,2]
[315443249,1709039447716,-654.26,0.00022827,2]
[315443250,1709039447726,-654.26,0.00022827,2]
[315443251,1709039447736,-3683.96,0.00022827,2]
[315443252,1709039447745,-500.0,0.00022827,2]
[315443253,1709039447755,-519.31,0.00022827,2]
[315443254,1709039447764,-631.65,0.00022827,2]
[315443255,1709039447777,-636.38,0.00022827,2]
[315443256,1709039447787,-636.38,0.00022827,2]
[315443257,1709039447796,-636.38,0.00022827,2]
[315443258,1709039447805,-500.0,0.00022827,2]
[315443259,1709039447815,-522.59734188,0.00022828,2]
[315443260,1709039447824,-608.82,0.00022828,2]
[315443261,1709039447834,-500.0,0.00022828,2]
[315443262,1709039447844,-529.54,0.00022828,2]
[315443263,1709039447855,-500.0,0.00022828,2]
[315443264,1709039447866,-500.0,0.00022828,2]
[315443265,1709039447875,-500.0,0.00022828,2]
[315443266,1709039447885,-500.0,0.00022828,2]
[315443267,1709039447895,-500.0,0.00022828,2]
[315443268,1709039447904,-500.0,0.00022828,2]
[315443269,1709039447913,-500.0,0.00022828,2]
[315443270,1709039447923,-500.0,0.00022828,2]
[315443271,1709039447932,-519.17309691,0.00022828,2]
[315443272,1709039447942,-500.0,0.00022828,2]
[315443273,1709039447952,-506.30647782,0.00022828,2]
[315443274,1709039447961,-500.0,0.00022828,2]
[315443275,1709039447971,-500.0,0.00022828,2]
[315443276,1709039447980,-500.0,0.00022828,2]
[315443277,1709039447990,-500.0,0.00022828,2]
[315443278,1709039447999,-500.0,0.00022828,2]
[315443279,1709039448010,-503.56,0.00022828,2]
[315443280,1709039448019,-557.12650616,0.00022828,2]
[315443281,1709039448029,-500.0,0.00022828,2]
[315443282,1709039448038,-500.0,0.00022828,2]
[315443283,1709039448047,-500.0,0.00022828,2]
[315443284,1709039448057,-500.36,0.00022828,2]
[315443285,1709039448066,-500.0,0.00022828,2]
[315443286,1709039448076,-500.0,0.00022828,2]
[315443287,1709039448086,-500.0,0.00022828,2]
[315443288,1709039448096,-500.0,0.00022828,2]
[315443289,1709039448105,-500.0,0.00022828,2]
[315443290,1709039448114,-565.24,0.00022828,2]
[315443291,1709039448125,-500.0,0.00022828,2]
[315443292,1709039448135,-516.05856526,0.00022828,2]
[315443293,1709039448145,-500.0,0.00022828,2]
[315443294,1709039448154,-500.0,0.00022828,2]
[315443295,1709039448163,-513.61629932,0.00022828,2]
[315443296,1709039448173,-500.0,0.00022828,2]
[315443297,1709039448182,-500.0,0.00022828,2]
[315443298,1709039448191,-500.0,0.00022828,2]
[315443299,1709039448201,-500.0,0.00022828,2]
[315443300,1709039448210,-500.0,0.00022828,2]
[315443301,1709039448219,-500.0,0.00022828,2]
[315443302,1709039448228,-500.0,0.00022828,2]
[315443303,1709039448239,-500.0,0.00022828,2]
[315443304,1709039448248,-500.0,0.00022828,2]
[315443305,1709039448258,-500.0,0.00022828,2]
[315443306,1709039448267,-500.0,0.00022828,2]
[315443307,1709039448278,-500.0,0.00022828,2]
[315443308,1709039448288,-500.0,0.00022828,2]
[315443309,1709039448297,-632.06,0.00022828,2]
[315443310,1709039448307,-500.0,0.00022828,2]
[315443311,1709039448316,-500.0,0.00022828,2]
[315443312,1709039448461,-500.0,0.00022828,2]
[315443313,1709039448470,-303.03565823,0.00022828,2]
[315443314,1709039448479,-500.0,0.00022828,2]
[315443315,1709039448489,-500.0,0.00022828,2]
[315443316,1709039448498,-500.0,0.00022828,2]
[315443317,1709039448507,-500.0,0.00022828,2]
[315443318,1709039448517,-500.0,0.00022828,2]
[315443319,1709039448525,-555.02,0.00022828,2]
[315443320,1709039448534,-500.0,0.00022828,2]
[315443321,1709039448543,-500.0,0.00022828,2]
[315443322,1709039448552,-500.0,0.00022828,2]
[315443323,1709039448561,-500.0,0.00022828,2]
[315443324,1709039448570,-500.0,0.00022828,2]
[315443325,1709039448579,-500.0,0.00022828,2]
[315443326,1709039448588,-500.0,0.00022828,2]
[315443327,1709039448598,-500.0,0.00022828,2]
[315443328,1709039448606,-500.0,0.00022828,2]
[315443329,1709039448615,-168.35754133,0.00022828,2]
[315443330,1709039448625,-500.0,0.00022828,2]
[315443331,1709039448634,-563.86,0.00022828,2]
[315443332,1709039448643,-500.0,0.00022828,2]
[315443333,1709039448652,-500.0,0.00022828,2]
[315443334,1709039448661,-500.0,0.00022828,2]
[315443335,1709039448670,-500.0,0.00022828,2]
[315443336,1709039448680,-517.68,0.00022828,2]
[315443337,1709039448690,-500.0,0.00022828,2]
[315443338,1709039448699,-500.0,0.00022828,2]
[315443339,1709039448708,-571.28,0.00022828,2]
[315443340,1709039448718,-500.0,0.00022828,2]
[315443341,1709039448727,-589.66,0.00022828,2]
[315443342,1709039448737,-505.49383708,0.00022828,2]
[315443343,1709039448746,-542.55,0.00022828,2]
[315443344,1709039448757,-500.0,0.00022828,2]
[315443345,1709039448766,-927.51,0.00022828,2]
[315443346,1709039448779,-500.0,0.00022828,2]
[315443347,1709039448789,-500.0,0.00022828,2]
[315443348,1709039448799,-500.0,0.00022828,2]
[315443349,1709039448809,-500.0,0.00022828,2]
[315443350,1709039448819,-507.94589508,0.00022828,2]
[315443351,1709039448829,-500.0,0.00022828,2]
[315443352,1709039448838,-500.0,0.00022828,2]
[315443353,1709039448848,-500.0,0.00022828,2]
[315443354,1709039448858,-500.0,0.00022828,2]
[315443355,1709039448869,-564.27,0.00022828,2]
[315443356,1709039448879,-500.0,0.00022828,2]
[315443357,1709039448888,-512.74029267,0.00022828,2]
[315443358,1709039448898,-500.0,0.00022828,2]
[315443359,1709039448907,-500.0,0.00022828,2]
[315443360,1709039448916,-160.57,0.0002283,2]
[315443361,1709039448926,-193.6326841,0.00022879,2]
[315443362,1709039448936,-177.98979816,0.00022879,2]
[315443363,1709039448946,-500.0,0.00022897,2]
[315443364,1709039448955,-738.75,0.00022897,2]
[315443365,1709039448965,-3416.36,0.00022897,2]
[315443366,1709039448974,-500.0,0.00022897,2]
[315443367,1709039448984,-500.0,0.00022897,2]
[315443368,1709039448993,-1323.85,0.00022897,2]
[315443369,1709039449003,-643.67,0.00022897,2]
[315443370,1709039449013,-572.95,0.00022897,2]
[315443371,1709039449023,-500.0,0.00022897,2]
[315443372,1709039449033,-3659.92,0.00022897,2]
[315443373,1709039449042,-1627.11,0.00022897,2]
[315443374,1709039449052,-788.36,0.00022897,2]
[315443375,1709039449061,-554.21,0.00022897,2]
[315443376,1709039449073,-1099.35,0.00022897,2]
[315443377,1709039449082,-504.49,0.00022897,2]
[315443378,1709039449091,-2796.93,0.00022897,2]
[315443379,1709039449101,-577.96,0.00022897,2]
[315443380,1709039449110,-500.0,0.00022897,2]
[315443381,1709039449121,-777.69,0.00022897,2]
[315443382,1709039449131,-1645.64,0.00022897,2]
[315443383,1709039449140,-2166.21,0.00022897,2]
[315443384,1709039449150,-500.0,0.00022897,2]
[315443385,1709039449160,-812.11,0.00022897,2]
[315443386,1709039449170,-814.15,0.00022897,2]
[315443387,1709039449179,-7070.88,0.00022897,2]
[315443388,1709039449189,-565.4,0.00022897,2]
[315443389,1709039449199,-500.0,0.00022897,2]
[315443390,1709039449209,-768.49,0.00022897,2]
[315443391,1709039449219,-1229.1,0.00022897,2]
[315443392,1709039449228,-594.76,0.00022897,2]
[315443393,1709039449238,-500.0,0.00022897,2]
[315443394,1709039449247,-500.0,0.00022897,2]
[315443395,1709039449256,-1344.36,0.00022897,2]
[315443396,1709039449265,-631.65,0.00022897,2]
[315443397,1709039449275,-519.31,0.00022897,2]
[315443398,1709039449285,-500.0,0.00022897,2]
[315443399,1709039449294,-710.45,0.00022897,2]
[315443400,1709039449303,-222.37638686,0.00022898,2]
[315443401,1709039449313,-500.0,0.00022898,2]
[315443402,1709039449323,-500.0,0.00022898,2]
[315443403,1709039449333,-525.11884827,0.00022898,2]
[315443404,1709039449343,-500.0,0.00022898,2]
[315443405,1709039449353,-522.66527169,0.00022898,2]
[315443406,1709039449362,-500.0,0.00022898,2]
[315443407,1709039449373,-500.0,0.00022898,2]
[315443408,1709039449382,-500.0,0.00022898,2]
[315443409,1709039449391,-500.0,0.00022898,2]
[315443410,1709039449400,-512.26872483,0.00022898,2]
[315443411,1709039449409,-500.0,0.00022898,2]
[315443412,1709039449418,-309.02038682,0.00022898,2]
[315443413,1709039449427,-545.29014247,0.00022898,2]
[315443414,1709039449437,-500.0,0.00022898,2]
[315443415,1709039449446,-458.14473324,0.00022898,2]
[315443416,1709039449455,-500.0,0.00022898,2]
[315443417,1709039449464,-500.0,0.00022898,2]
[315443418,1709039449473,-500.0,0.00022898,2]
[315443419,1709039449482,-500.0,0.00022898,2]
[315443420,1709039449491,-508.97991222,0.00022898,2]
[315443421,1709039449500,-521.85393435,0.00022898,2]
[315443422,1709039449509,-500.0,0.00022898,2]
[315443423,1709039449519,-500.0,0.00022898,2]
[315443424,1709039449528,-500.0,0.00022898,2]
[315443425,1709039449537,-500.0,0.00022898,2]
[315443426,1709039449546,-500.0,0.00022898,2]
[315443427,1709039449555,-515.33166959,0.00022898,2]
[315443428,1709039449565,-500.0,0.00022898,2]
[315443429,1709039449574,-500.0,0.00022898,2]
[315443430,1709039449583,-500.0,0.00022898,2]
[315443431,1709039449592,-538.29298208,0.00022898,2]
[315443432,1709039449601,-500.0,0.00022898,2]
[315443433,1709039449610,-223.35477979,0.00022898,2]
[315443434,1709039449619,-525.88155512,0.00022898,2]
[315443435,1709039449628,-505.93351425,0.00022898,2]
[315443436,1709039449638,-516.22636855,0.00022898,2]
[315443437,1709039449648,-515.76110868,0.00022898,2]
[315443438,1709039449658,-500.0,0.00022898,2]
[315443439,1709039449667,-539.99,0.00022898,2]
[315443440,1709039449677,-520.85703937,0.00022898,2]
[315443441,1709039449687,-500.0,0.00022898,2]
[315443442,1709039449697,-517.83026848,0.00022898,2]
[315443443,1709039449706,-505.07011409,0.00022898,2]
[315443444,1709039449716,-512.4940535,0.00022898,2]
[315443445,1709039449726,-500.0,0.00022898,2]
[315443446,1709039449735,-500.0,0.00022898,2]
[315443447,1709039449745,-526.37480963,0.00022898,2]
[315443448,1709039449755,-580.60805527,0.00022898,2]
[315443449,1709039449764,-512.91448654,0.00022898,2]
[315443450,1709039449777,-500.0,0.00022898,2]
[315443451,1709039449787,-500.0,0.00022898,2]
[315443452,1709039449797,-522.38896927,0.00022898,2]
[315443453,1709039449806,-500.0,0.00022898,2]
[315443454,1709039449816,-523.25095519,0.00022898,2]
[315443455,1709039449825,-500.0,0.00022898,2]
[315443456,1709039449835,-524.69580327,0.00022898,2]
[315443457,1709039449845,-523.03540687,0.00022898,2]
[315443458,1709039449857,-500.0,0.00022898,2]
[315443459,1709039449868,-441.26340909,0.00022898,2]
[315443460,1709039449878,-509.10869969,0.00022898,2]
[315443461,1709039449887,-500.0,0.00022898,2]
[315443462,1709039449896,-500.0,0.00022898,2]
[315443463,1709039449906,-500.0,0.00022898,2]
[315443464,1709039449915,-500.0,0.00022898,2]
[315443465,1709039449924,-507.14010284,0.00022898,2]
[315443466,1709039449933,-520.03827817,0.00022898,2]
[315443467,1709039449943,-538.56167805,0.00022898,2]
[315443468,1709039449952,-511.60456125,0.00022898,2]
[315443469,1709039449962,-511.04429614,0.00022898,2]
[315443470,1709039449971,-518.30214119,0.00022898,2]
[315443471,1709039449981,-500.0,0.00022898,2]
[315443472,1709039449991,-507.64904184,0.00022898,2]
[315443473,1709039450000,-504.41599949,0.00022898,2]